[Event "Titled Tuesday Blitz May 03 Early 2022"]
[White "Erdogdu, Mert"]
[Black "Jobava, Baadur"]
[WhiteFideId "6301495"]
[BlackFideId "13601520"]
[WhiteElo "2485"]
[BlackElo "2617"]
[Result "1-0"]
[Round "09"]
[TimeControl "180+1"]
[Date "2022.05.03"]
[WhiteClock "0:00:04"]
[BlackClock "0:00:03"]

1. e4 {[%clk 0:03:00]}  e6 {[%clk 0:02:55]} 2. d4 {[%clk 0:03:00]}  d5 {[%clk 0:02:55]} 3. exd5 {[%clk 0:03:01]}  exd5 {[%clk 0:02:55]} 4. c4 {[%clk 0:03:02]}  Nf6 {[%clk 0:02:54]} 5. Nc3 {[%clk 0:03:03]}  Bd6 {[%clk 0:02:52]} 6. Bd3 {[%clk 0:03:02]}  dxc4 {[%clk 0:02:51]} 7. Bxc4 {[%clk 0:03:03]}  O-O {[%clk 0:02:51]} 8. Nge2 {[%clk 0:02:54]}  Nc6 {[%clk 0:02:50]} 9. O-O {[%clk 0:02:54]}  h6 {[%clk 0:02:49]} 10. a3 {[%clk 0:02:53]}  Bf5 {[%clk 0:02:46]} 11. h3 {[%clk 0:02:45]}  Qd7 {[%clk 0:02:45]} 12. Be3 {[%clk 0:01:57]}  Rfe8 {[%clk 0:02:39]} 13. Qd2 {[%clk 0:01:39]}  Rad8 {[%clk 0:02:15]} 14. Rad1 {[%clk 0:01:39]}  a6 {[%clk 0:02:14]} 15. Bf4 {[%clk 0:01:37]}  Re7 {[%clk 0:01:47]} 16. Ng3 {[%clk 0:01:29]}  Bg6 {[%clk 0:01:45]} 17. Bxh6 {[%clk 0:01:25]}  Bxg3 {[%clk 0:01:06]} 18. fxg3 {[%clk 0:01:25]}  Qxd4+ {[%clk 0:01:02]} 19. Qxd4 {[%clk 0:01:25]}  Rxd4 {[%clk 0:01:02]} 20. Rxd4 {[%clk 0:01:24]}  Nxd4 {[%clk 0:01:03]} 21. Bg5 {[%clk 0:01:20]}  b5 {[%clk 0:01:03]} 22. Ba2 {[%clk 0:01:11]}  c5 {[%clk 0:00:59]} 23. Bxf6 {[%clk 0:01:04]}  gxf6 {[%clk 0:01:00]} 24. Rxf6 {[%clk 0:01:02]}  b4 {[%clk 0:01:00]} 25. Rxg6+ {[%clk 0:01:01]}  Kh7 {[%clk 0:00:58]} 26. Rxa6 {[%clk 0:00:54]}  bxc3 {[%clk 0:00:58]} 27. bxc3 {[%clk 0:00:54]}  Ne2+ {[%clk 0:00:58]} 28. Kf2 {[%clk 0:00:54]}  Nxc3 {[%clk 0:00:59]} 29. Bc4 {[%clk 0:00:36]}  Kg7 {[%clk 0:00:55]} 30. a4 {[%clk 0:00:33]}  Re4 {[%clk 0:00:51]} 31. Bb5 {[%clk 0:00:23]}  Rb4 {[%clk 0:00:33]} 32. Be8 {[%clk 0:00:22]}  Rb8 {[%clk 0:00:31]} 33. Bc6 {[%clk 0:00:22]}  c4 {[%clk 0:00:28]} 34. Ra7 {[%clk 0:00:21]}  Rb2+ {[%clk 0:00:27]} 35. Ke3 {[%clk 0:00:21]}  Nd1+ {[%clk 0:00:25]} 36. Kd4 {[%clk 0:00:20]}  c3 {[%clk 0:00:26]} 37. Be4 {[%clk 0:00:18]}  Rd2+ {[%clk 0:00:25]} 38. Ke5 {[%clk 0:00:17]}  Nf2 {[%clk 0:00:24]} 39. Bf5 {[%clk 0:00:15]}  Nd1 {[%clk 0:00:21]} 40. Rc7 {[%clk 0:00:15]}  Rxg2 {[%clk 0:00:20]} 41. g4 {[%clk 0:00:13]}  Ra2 {[%clk 0:00:19]} 42. Rc4 {[%clk 0:00:09]}  Re2+ {[%clk 0:00:16]} 43. Kf4 {[%clk 0:00:09]}  Rf2+ {[%clk 0:00:13]} 44. Kg3 {[%clk 0:00:08]}  Ra2 {[%clk 0:00:12]} 45. h4 {[%clk 0:00:08]}  Ra3 {[%clk 0:00:12]} 46. Kf4 {[%clk 0:00:08]}  Nb2 {[%clk 0:00:12]} 47. Rc7 {[%clk 0:00:07]}  Rxa4+ {[%clk 0:00:12]} 48. Ke3 {[%clk 0:00:07]}  Nc4+ {[%clk 0:00:12]} 49. Kd3 {[%clk 0:00:07]}  Ne5+ {[%clk 0:00:12]} 50. Kxc3 {[%clk 0:00:06]}  Nxg4 {[%clk 0:00:13]} 51. Be6 {[%clk 0:00:05]}  Ne5 {[%clk 0:00:13]} 52. Bb3 {[%clk 0:00:04]}  Rxh4 {[%clk 0:00:12]} 53. Bxf7 {[%clk 0:00:04]}  Nxf7 {[%clk 0:00:12]} 54. Kd3 {[%clk 0:00:05]}  Kf6 {[%clk 0:00:09]} 55. Rc6+ {[%clk 0:00:04]}  Kf5 {[%clk 0:00:09]} 56. Ra6 {[%clk 0:00:05]}  Ne5+ {[%clk 0:00:10]} 57. Kc3 {[%clk 0:00:05]}  Rh3+ {[%clk 0:00:10]} 58. Kb4 {[%clk 0:00:05]}  Ke4 {[%clk 0:00:10]} 59. Re6 {[%clk 0:00:05]}  Kd5 {[%clk 0:00:10]} 60. Rf6 {[%clk 0:00:04]}  Nc6+ {[%clk 0:00:10]} 61. Kb5 {[%clk 0:00:03]}  Rb3+ {[%clk 0:00:10]} 62. Ka6 {[%clk 0:00:03]}  Rb1 {[%clk 0:00:11]} 63. Rh6 {[%clk 0:00:02]}  Nb8+ {[%clk 0:00:09]} 64. Ka7 {[%clk 0:00:02]}  Kc5 {[%clk 0:00:09]} 65. Rh5+ {[%clk 0:00:02]}  Kd6 {[%clk 0:00:09]} 66. Rh6+ {[%clk 0:00:02]}  Kc7 {[%clk 0:00:09]} 67. Rh7+ {[%clk 0:00:03]}  Nd7 {[%clk 0:00:09]} 68. Ka6 {[%clk 0:00:03]}  Rb2 {[%clk 0:00:05]} 69. Ka5 {[%clk 0:00:04]}  Kd6 {[%clk 0:00:05]} 70. Ka4 {[%clk 0:00:04]}  Nc5+ {[%clk 0:00:04]} 71. Ka3 {[%clk 0:00:04]}  Rb8 {[%clk 0:00:05]} 72. Rh5 {[%clk 0:00:04]}  Kc6 {[%clk 0:00:03]} 73. Ka2 {[%clk 0:00:04]} 1-0


[Site "https://www.chess.com"]

[Event "Titled Tuesday Blitz May 03 Early 2022"]
[White "Estrada Nieto, Julian"]
[Black "Sailer, Mike"]
[WhiteFideId "5101018"]
[BlackFideId "2012901"]
[WhiteElo "2252"]
[BlackElo "2109"]
[Result "1-0"]
[Round "09"]
[TimeControl "180+1"]
[Date "2022.05.03"]
[WhiteClock "0:01:24"]
[BlackClock "0:00:02"]

1. e4 {[%clk 0:03:00]}  d5 {[%clk 0:02:40]} 2. exd5 {[%clk 0:03:00]}  Qxd5 {[%clk 0:02:36]} 3. Nc3 {[%clk 0:02:59]}  Qd6 {[%clk 0:02:31]} 4. g3 {[%clk 0:02:59]}  Nf6 {[%clk 0:02:23]} 5. Bg2 {[%clk 0:02:59]}  c6 {[%clk 0:02:24]} 6. h3 {[%clk 0:02:58]}  Bf5 {[%clk 0:02:23]} 7. Nge2 {[%clk 0:02:58]}  e6 {[%clk 0:02:24]} 8. O-O {[%clk 0:02:57]}  Be7 {[%clk 0:02:24]} 9. d3 {[%clk 0:02:57]}  h6 {[%clk 0:02:24]} 10. Rb1 {[%clk 0:02:57]}  a5 {[%clk 0:02:22]} 11. a3 {[%clk 0:02:50]}  O-O {[%clk 0:02:15]} 12. b4 {[%clk 0:02:50]}  axb4 {[%clk 0:02:16]} 13. axb4 {[%clk 0:02:50]}  Qc7 {[%clk 0:02:03]} 14. b5 {[%clk 0:02:40]}  Nbd7 {[%clk 0:01:58]} 15. bxc6 {[%clk 0:02:36]}  bxc6 {[%clk 0:01:57]} 16. Nd4 {[%clk 0:02:36]}  Nd5 {[%clk 0:01:26]} 17. Nxd5 {[%clk 0:02:26]}  cxd5 {[%clk 0:01:20]} 18. Nxf5 {[%clk 0:02:26]}  exf5 {[%clk 0:01:20]} 19. Bxd5 {[%clk 0:02:25]}  Rac8 {[%clk 0:01:02]} 20. Bf4 {[%clk 0:02:15]}  Qxc2 {[%clk 0:00:49]} 21. Qxc2 {[%clk 0:02:15]}  Rxc2 {[%clk 0:00:49]} 22. Rb7 {[%clk 0:02:16]}  Nf6 {[%clk 0:00:35]} 23. Bb3 {[%clk 0:02:15]}  Re2 {[%clk 0:00:26]} 24. Kg2 {[%clk 0:02:01]}  Bc5 {[%clk 0:00:26]} 25. Kf3 {[%clk 0:01:56]}  Re7 {[%clk 0:00:19]} 26. Rxe7 {[%clk 0:01:50]}  Bxe7 {[%clk 0:00:20]} 27. Rc1 {[%clk 0:01:50]}  Rd8 {[%clk 0:00:16]} 28. Ke2 {[%clk 0:01:48]}  Nd5 {[%clk 0:00:14]} 29. Bxd5 {[%clk 0:01:46]}  Rxd5 {[%clk 0:00:14]} 30. Rc8+ {[%clk 0:01:46]}  Kh7 {[%clk 0:00:14]} 31. Rc7 {[%clk 0:01:46]}  Bd6 {[%clk 0:00:02]} 32. Bxd6 {[%clk 0:01:42]}  Rxd6 {[%clk 0:00:03]} 33. Rxf7 {[%clk 0:01:43]}  Kg6 {[%clk 0:00:04]} 34. Re7 {[%clk 0:01:42]}  Kf6 {[%clk 0:00:04]} 35. Re8 {[%clk 0:01:41]}  g5 {[%clk 0:00:04]} 36. Ke3 {[%clk 0:01:39]}  Ra6 {[%clk 0:00:04]} 37. Rh8 {[%clk 0:01:38]}  Kg7 {[%clk 0:00:04]} 38. Rc8 {[%clk 0:01:37]}  Kf6 {[%clk 0:00:05]} 39. f4 {[%clk 0:01:32]}  Re6+ {[%clk 0:00:03]} 40. Kf3 {[%clk 0:01:32]}  Rd6 {[%clk 0:00:03]} 41. Rc3 {[%clk 0:01:29]}  Kg6 {[%clk 0:00:03]} 42. Ke3 {[%clk 0:01:28]}  Kf6 {[%clk 0:00:02]} 43. d4 {[%clk 0:01:28]}  gxf4+ {[%clk 0:00:02]} 44. gxf4 {[%clk 0:01:25]}  Ra6 {[%clk 0:00:02]} 45. d5 {[%clk 0:01:24]} 1-0


[Site "https://www.chess.com"]

[Event "Titled Tuesday Blitz May 03 Early 2022"]
[White "Gatterer, Florian"]
[Black "Sanchez, Robert"]
[WhiteFideId "811688"]
[BlackFideId "2034360"]
[WhiteElo "2218"]
[BlackElo "2442"]
[Result "1/2-1/2"]
[Round "09"]
[TimeControl "180+1"]
[Date "2022.05.03"]
[WhiteClock "0:00:18"]
[BlackClock "0:00:58"]

1. c4 {[%clk 0:03:00]}  c6 {[%clk 0:02:57]} 2. Nf3 {[%clk 0:03:00]}  Nf6 {[%clk 0:02:58]} 3. e3 {[%clk 0:03:00]}  d5 {[%clk 0:02:58]} 4. Nc3 {[%clk 0:02:59]}  g6 {[%clk 0:02:58]} 5. d4 {[%clk 0:02:58]}  Bg7 {[%clk 0:02:57]} 6. Be2 {[%clk 0:02:58]}  Bg4 {[%clk 0:02:54]} 7. O-O {[%clk 0:02:57]}  O-O {[%clk 0:02:53]} 8. Ne5 {[%clk 0:02:57]}  Bxe2 {[%clk 0:02:53]} 9. Qxe2 {[%clk 0:02:58]}  e6 {[%clk 0:02:51]} 10. b3 {[%clk 0:02:55]}  Nbd7 {[%clk 0:02:51]} 11. Nxd7 {[%clk 0:02:53]}  Qxd7 {[%clk 0:02:50]} 12. Ba3 {[%clk 0:02:51]}  Rfe8 {[%clk 0:02:50]} 13. cxd5 {[%clk 0:02:47]}  exd5 {[%clk 0:02:45]} 14. Qd1 {[%clk 0:02:43]}  h5 {[%clk 0:02:43]} 15. b4 {[%clk 0:02:40]}  h4 {[%clk 0:02:42]} 16. h3 {[%clk 0:02:36]}  Ne4 {[%clk 0:02:36]} 17. Nxe4 {[%clk 0:02:35]}  Rxe4 {[%clk 0:02:36]} 18. Rb1 {[%clk 0:02:26]}  Rae8 {[%clk 0:02:35]} 19. Bc1 {[%clk 0:02:17]}  g5 {[%clk 0:02:32]} 20. f3 {[%clk 0:02:13]}  R4e7 {[%clk 0:02:21]} 21. Qd3 {[%clk 0:02:12]}  Qe6 {[%clk 0:02:13]} 22. Rb3 {[%clk 0:02:11]}  f5 {[%clk 0:02:12]} 23. Kh1 {[%clk 0:02:05]}  g4 {[%clk 0:02:03]} 24. fxg4 {[%clk 0:01:26]}  fxg4 {[%clk 0:02:04]} 25. Qf5 {[%clk 0:01:26]}  Qxf5 {[%clk 0:01:54]} 26. Rxf5 {[%clk 0:01:25]}  g3 {[%clk 0:01:55]} 27. Rf4 {[%clk 0:01:14]}  Rf7 {[%clk 0:01:50]} 28. Rxf7 {[%clk 0:01:05]}  Kxf7 {[%clk 0:01:51]} 29. b5 {[%clk 0:01:05]}  Bxd4 {[%clk 0:01:45]} 30. bxc6 {[%clk 0:01:02]}  bxc6 {[%clk 0:01:45]} 31. Kg1 {[%clk 0:00:42]}  Bb6 {[%clk 0:01:43]} 32. Kf1 {[%clk 0:00:42]}  Kg6 {[%clk 0:01:38]} 33. Ke2 {[%clk 0:00:42]}  Rf8 {[%clk 0:01:36]} 34. Rb4 {[%clk 0:00:33]}  Rf2+ {[%clk 0:01:35]} 35. Kd3 {[%clk 0:00:32]}  Kh5 {[%clk 0:01:31]} 36. Rf4 {[%clk 0:00:24]}  Rxg2 {[%clk 0:01:30]} 37. e4 {[%clk 0:00:23]}  dxe4+ {[%clk 0:01:27]} 38. Kxe4 {[%clk 0:00:19]}  Rxa2 {[%clk 0:01:26]} 39. Rf6 {[%clk 0:00:19]}  Ra4+ {[%clk 0:00:58]} 40. Kd3 {[%clk 0:00:18]} 1/2-1/2


[Site "https://www.chess.com"]

[Event "Titled Tuesday Blitz May 03 Early 2022"]
[White "Harish, Neeraj"]
[Black "Khokhlova, Daria"]
[WhiteFideId "30958130"]
[BlackFideId "24182729"]
[WhiteElo "1574"]
[BlackElo "2034"]
[Result "0-1"]
[Round "09"]
[TimeControl "180+1"]
[Date "2022.05.03"]
[WhiteClock "0:00:13"]
[BlackClock "0:00:33"]

1. e4 {[%clk 0:03:00]}  c5 {[%clk 0:02:59]} 2. Nf3 {[%clk 0:03:00]}  d6 {[%clk 0:02:59]} 3. d4 {[%clk 0:03:00]}  cxd4 {[%clk 0:03:00]} 4. Nxd4 {[%clk 0:03:01]}  Nf6 {[%clk 0:02:59]} 5. Nc3 {[%clk 0:03:00]}  a6 {[%clk 0:02:59]} 6. Be3 {[%clk 0:02:58]}  e5 {[%clk 0:02:58]} 7. Nb3 {[%clk 0:02:58]}  Be6 {[%clk 0:02:57]} 8. Qd2 {[%clk 0:02:58]}  Be7 {[%clk 0:02:45]} 9. f3 {[%clk 0:02:57]}  h5 {[%clk 0:02:45]} 10. Nd5 {[%clk 0:02:55]}  Nxd5 {[%clk 0:02:36]} 11. exd5 {[%clk 0:02:56]}  Bf5 {[%clk 0:02:36]} 12. Be2 {[%clk 0:02:52]}  Nd7 {[%clk 0:02:35]} 13. O-O {[%clk 0:02:50]}  Rc8 {[%clk 0:02:35]} 14. c4 {[%clk 0:02:48]}  O-O {[%clk 0:02:33]} 15. Na5 {[%clk 0:02:47]}  Qc7 {[%clk 0:02:32]} 16. b4 {[%clk 0:02:42]}  Rfd8 {[%clk 0:02:11]} 17. Rac1 {[%clk 0:02:31]}  Nf6 {[%clk 0:02:05]} 18. Bd3 {[%clk 0:01:56]}  Bd7 {[%clk 0:01:52]} 19. Be4 {[%clk 0:01:14]}  b6 {[%clk 0:01:45]} 20. Nb3 {[%clk 0:01:01]}  Qb7 {[%clk 0:01:28]} 21. c5 {[%clk 0:00:56]}  Nxe4 {[%clk 0:01:22]} 22. fxe4 {[%clk 0:00:55]}  bxc5 {[%clk 0:01:22]} 23. bxc5 {[%clk 0:00:52]}  dxc5 {[%clk 0:01:16]} 24. Nxc5 {[%clk 0:00:42]}  Bxc5 {[%clk 0:01:15]} 25. Bxc5 {[%clk 0:00:43]}  Qb5 {[%clk 0:01:03]} 26. Be3 {[%clk 0:00:31]}  Qa4 {[%clk 0:00:52]} 27. Qf2 {[%clk 0:00:24]}  Be8 {[%clk 0:00:43]} 28. Qf5 {[%clk 0:00:16]}  Rxc1 {[%clk 0:00:35]} 29. Rxc1 {[%clk 0:00:16]}  Qa3 {[%clk 0:00:34]} 30. Qxh5 {[%clk 0:00:13]}  Qxe3+ {[%clk 0:00:33]} 0-1


[Site "https://www.chess.com"]

[Event "Titled Tuesday Blitz May 03 Early 2022"]
[White "Horcajuelo Rocamora, Martin"]
[Black "Hart, Braeden"]
[WhiteFideId "24573027"]
[BlackFideId "30962587"]
[WhiteElo "1822"]
[BlackElo "2516"]
[Result "0-1"]
[Round "09"]
[TimeControl "180+1"]
[Date "2022.05.03"]
[WhiteClock "0:02:25"]
[BlackClock "0:02:41"]

1. e4 {[%clk 0:03:00]}  e5 {[%clk 0:02:58]} 2. Nf3 {[%clk 0:03:01]}  d5 {[%clk 0:02:59]} 3. Nxe5 {[%clk 0:03:00]}  Bd6 {[%clk 0:02:59]} 4. Nf3 {[%clk 0:03:00]}  dxe4 {[%clk 0:02:59]} 5. Nd4 {[%clk 0:03:00]}  Nf6 {[%clk 0:02:50]} 6. Nb3 {[%clk 0:02:56]}  O-O {[%clk 0:02:48]} 7. Nc3 {[%clk 0:02:55]}  Nc6 {[%clk 0:02:48]} 8. Be2 {[%clk 0:02:55]}  Ne5 {[%clk 0:02:46]} 9. h3 {[%clk 0:02:53]}  Bf5 {[%clk 0:02:44]} 10. O-O {[%clk 0:02:45]}  Qd7 {[%clk 0:02:43]} 11. d3 {[%clk 0:02:33]}  Bxh3 {[%clk 0:02:42]} 12. gxh3 {[%clk 0:02:30]}  Qxh3 {[%clk 0:02:41]} 13. Nxe4 {[%clk 0:02:28]}  Nf3+ {[%clk 0:02:40]} 14. Bxf3 {[%clk 0:02:25]}  Qh2# {[%clk 0:02:41]} 0-1


[Site "https://www.chess.com"]

[Event "Titled Tuesday Blitz May 03 Early 2022"]
[White "Itkis, Boris"]
[Black "Samarth, J Rao"]
[WhiteFideId "1209167"]
[BlackFideId "46652370"]
[WhiteElo "2207"]
[BlackElo "1514"]
[Result "0-1"]
[Round "09"]
[TimeControl "180+1"]
[Date "2022.05.03"]
[WhiteClock "0:00:15"]
[BlackClock "0:00:05"]

1. Nf3 {[%clk 0:03:00]}  Nf6 {[%clk 0:02:58]} 2. b3 {[%clk 0:03:00]}  g6 {[%clk 0:02:57]} 3. Bb2 {[%clk 0:03:00]}  Bg7 {[%clk 0:02:57]} 4. e3 {[%clk 0:03:00]}  O-O {[%clk 0:02:55]} 5. d4 {[%clk 0:03:00]}  d5 {[%clk 0:02:54]} 6. Nbd2 {[%clk 0:03:01]}  c5 {[%clk 0:02:52]} 7. Bd3 {[%clk 0:03:00]}  Nc6 {[%clk 0:02:53]} 8. O-O {[%clk 0:02:59]}  Bg4 {[%clk 0:02:52]} 9. h3 {[%clk 0:02:56]}  Bxf3 {[%clk 0:02:52]} 10. Nxf3 {[%clk 0:02:57]}  Ne4 {[%clk 0:02:52]} 11. Rb1 {[%clk 0:02:41]}  f5 {[%clk 0:02:43]} 12. dxc5 {[%clk 0:02:29]}  Bxb2 {[%clk 0:02:37]} 13. Rxb2 {[%clk 0:02:30]}  Nxc5 {[%clk 0:02:36]} 14. c4 {[%clk 0:02:29]}  Kg7 {[%clk 0:02:14]} 15. Rd2 {[%clk 0:02:13]}  e5 {[%clk 0:01:51]} 16. cxd5 {[%clk 0:02:07]}  Nb4 {[%clk 0:01:45]} 17. Bc4 {[%clk 0:02:04]}  Qd6 {[%clk 0:01:30]} 18. Qa1 {[%clk 0:01:50]}  Rae8 {[%clk 0:01:15]} 19. a3 {[%clk 0:01:45]}  Nba6 {[%clk 0:00:51]} 20. Ng5 {[%clk 0:01:22]}  h6 {[%clk 0:00:25]} 21. Nf3 {[%clk 0:00:58]}  b5 {[%clk 0:00:18]} 22. Bxb5 {[%clk 0:00:32]}  Nxb3 {[%clk 0:00:15]} 23. Qa2 {[%clk 0:00:33]}  Nxd2 {[%clk 0:00:13]} 24. Nxd2 {[%clk 0:00:33]}  Rd8 {[%clk 0:00:11]} 25. Rd1 {[%clk 0:00:26]}  Nc7 {[%clk 0:00:11]} 26. Nc4 {[%clk 0:00:23]}  Qc5 {[%clk 0:00:08]} 27. Qb2 {[%clk 0:00:19]}  Nxb5 {[%clk 0:00:05]} 28. Qxe5+ {[%clk 0:00:19]}  Kh7 {[%clk 0:00:05]} 29. Na5 {[%clk 0:00:16]}  Rfe8 {[%clk 0:00:06]} 30. Qg3 {[%clk 0:00:16]}  Nc3 {[%clk 0:00:05]} 31. Rf1 {[%clk 0:00:15]}  Ne2+ {[%clk 0:00:05]} 0-1


[Site "https://www.chess.com"]

[Event "Titled Tuesday Blitz May 03 Early 2022"]
[White "Kamsky, Gata"]
[Black "Fiorito, Fabian"]
[WhiteFideId "2000024"]
[BlackFideId "100200"]
[WhiteElo "2645"]
[BlackElo "2395"]
[Result "1-0"]
[Round "09"]
[TimeControl "180+1"]
[Date "2022.05.03"]
[WhiteClock "0:00:05"]
[BlackClock "0:00:05"]

1. d4 {[%clk 0:03:00]}  d5 {[%clk 0:02:59]} 2. Bf4 {[%clk 0:02:58]}  Nf6 {[%clk 0:03:00]} 3. e3 {[%clk 0:02:58]}  c5 {[%clk 0:03:00]} 4. c3 {[%clk 0:02:58]}  Nc6 {[%clk 0:02:59]} 5. Nd2 {[%clk 0:02:58]}  Bf5 {[%clk 0:02:58]} 6. Ngf3 {[%clk 0:02:46]}  Qb6 {[%clk 0:02:37]} 7. dxc5 {[%clk 0:02:43]}  Qxb2 {[%clk 0:02:26]} 8. Nd4 {[%clk 0:02:42]}  Bg6 {[%clk 0:02:16]} 9. Bb5 {[%clk 0:02:35]}  Rc8 {[%clk 0:02:08]} 10. O-O {[%clk 0:02:27]}  e6 {[%clk 0:02:05]} 11. Qa4 {[%clk 0:01:28]}  Bxc5 {[%clk 0:01:34]} 12. Nxc6 {[%clk 0:01:01]}  bxc6 {[%clk 0:01:04]} 13. Bxc6+ {[%clk 0:00:58]}  Kf8 {[%clk 0:01:03]} 14. Nb3 {[%clk 0:00:55]}  Bb6 {[%clk 0:01:02]} 15. c4 {[%clk 0:00:38]}  Kg8 {[%clk 0:00:54]} 16. c5 {[%clk 0:00:37]}  Bd8 {[%clk 0:00:50]} 17. Bb7 {[%clk 0:00:35]}  Rc7 {[%clk 0:00:45]} 18. Bxc7 {[%clk 0:00:34]}  Bxc7 {[%clk 0:00:46]} 19. Qc6 {[%clk 0:00:23]}  Qe5 {[%clk 0:00:44]} 20. f4 {[%clk 0:00:20]}  Qxe3+ {[%clk 0:00:44]} 21. Kh1 {[%clk 0:00:20]}  Ne4 {[%clk 0:00:24]} 22. Qxc7 {[%clk 0:00:20]}  h6 {[%clk 0:00:24]} 23. Qe5 {[%clk 0:00:18]}  Nf2+ {[%clk 0:00:23]} 24. Rxf2 {[%clk 0:00:18]}  Qxf2 {[%clk 0:00:24]} 25. Qd4 {[%clk 0:00:16]}  Qc2 {[%clk 0:00:22]} 26. Nd2 {[%clk 0:00:12]}  Kh7 {[%clk 0:00:20]} 27. c6 {[%clk 0:00:13]}  f6 {[%clk 0:00:16]} 28. Nf3 {[%clk 0:00:12]}  Be4 {[%clk 0:00:15]} 29. a4 {[%clk 0:00:10]}  Qe2 {[%clk 0:00:11]} 30. Re1 {[%clk 0:00:09]}  Qc2 {[%clk 0:00:09]} 31. a5 {[%clk 0:00:08]}  Rf8 {[%clk 0:00:08]} 32. a6 {[%clk 0:00:06]}  e5 {[%clk 0:00:08]} 33. Qd2 {[%clk 0:00:06]}  Qc5 {[%clk 0:00:07]} 34. Rc1 {[%clk 0:00:06]}  Qd6 {[%clk 0:00:06]} 35. c7 {[%clk 0:00:06]}  Bf5 {[%clk 0:00:06]} 36. c8=Q {[%clk 0:00:05]}  Bxc8 {[%clk 0:00:06]} 37. Bxc8 {[%clk 0:00:05]}  e4 {[%clk 0:00:06]} 38. Bf5+ {[%clk 0:00:05]}  g6 {[%clk 0:00:06]} 39. Bxe4 {[%clk 0:00:06]}  Rd8 {[%clk 0:00:04]} 40. Bd3 {[%clk 0:00:06]}  h5 {[%clk 0:00:04]} 41. f5 {[%clk 0:00:06]}  g5 {[%clk 0:00:04]} 42. Nxg5+ {[%clk 0:00:06]}  Kh6 {[%clk 0:00:05]} 43. Ne6+ {[%clk 0:00:05]} 1-0


[Site "https://www.chess.com"]

[Event "Titled Tuesday Blitz May 03 Early 2022"]
[White "Kazakouski, Valery"]
[Black "Hovhannisyan, Robert"]
[WhiteFideId "13507443"]
[BlackFideId "13302507"]
[WhiteElo "2524"]
[BlackElo "2570"]
[Result "0-1"]
[Round "09"]
[TimeControl "180+1"]
[Date "2022.05.03"]
[WhiteClock "0:00:11"]
[BlackClock "0:00:22"]

1. d4 {[%clk 0:02:57]}  d5 {[%clk 0:03:00]} 2. c4 {[%clk 0:02:57]}  c6 {[%clk 0:02:59]} 3. cxd5 {[%clk 0:02:57]}  cxd5 {[%clk 0:03:00]} 4. Nc3 {[%clk 0:02:58]}  Nf6 {[%clk 0:03:01]} 5. Bg5 {[%clk 0:02:58]}  Ne4 {[%clk 0:02:57]} 6. Nxe4 {[%clk 0:02:58]}  dxe4 {[%clk 0:02:58]} 7. Rc1 {[%clk 0:02:58]}  Be6 {[%clk 0:02:45]} 8. Qa4+ {[%clk 0:02:58]}  Nc6 {[%clk 0:02:40]} 9. e3 {[%clk 0:02:58]}  Bd5 {[%clk 0:02:34]} 10. Bc4 {[%clk 0:02:29]}  f6 {[%clk 0:02:30]} 11. Bh4 {[%clk 0:02:15]}  e6 {[%clk 0:02:29]} 12. Ne2 {[%clk 0:02:09]}  Bb4+ {[%clk 0:02:23]} 13. Kf1 {[%clk 0:02:09]}  Qa5 {[%clk 0:01:40]} 14. Qxa5 {[%clk 0:01:55]}  Bxa5 {[%clk 0:01:34]} 15. Bg3 {[%clk 0:01:47]}  Bxc4 {[%clk 0:01:23]} 16. Rxc4 {[%clk 0:01:47]}  Kd7 {[%clk 0:01:24]} 17. Nf4 {[%clk 0:01:27]}  Rhc8 {[%clk 0:01:11]} 18. a3 {[%clk 0:00:50]}  Ne7 {[%clk 0:01:08]} 19. b3 {[%clk 0:00:25]}  b5 {[%clk 0:01:03]} 20. Rc5 {[%clk 0:00:25]}  Bb6 {[%clk 0:01:02]} 21. Rxc8 {[%clk 0:00:25]}  Rxc8 {[%clk 0:01:03]} 22. Ke2 {[%clk 0:00:21]}  Rc2+ {[%clk 0:01:02]} 23. Kd1 {[%clk 0:00:22]}  Ra2 {[%clk 0:01:02]} 24. Re1 {[%clk 0:00:22]}  Rxa3 {[%clk 0:00:55]} 25. Kc2 {[%clk 0:00:22]}  Bc7 {[%clk 0:00:40]} 26. Kb2 {[%clk 0:00:18]}  Ra6 {[%clk 0:00:38]} 27. Nh5 {[%clk 0:00:17]}  Bxg3 {[%clk 0:00:24]} 28. hxg3 {[%clk 0:00:18]}  Nd5 {[%clk 0:00:24]} 29. Nxg7 {[%clk 0:00:16]}  Nb4 {[%clk 0:00:24]} 30. Re2 {[%clk 0:00:11]}  Ra2+ {[%clk 0:00:22]} 0-1


[Site "https://www.chess.com"]